{"text_format":"1","workbook":"xlsx","n_sheets":2,"sheets":["Pasiūlymas","Subtiekėjai ir priedai"],"not_rendered":{"charts":0,"images":0,"macros":1,"external_links":0,"defined_names":0,"comments":0,"pivot_tables":0},"unopened":[],"bounds":{"document_bytes":16777216,"sheet_cells":100000,"rows_first":2000,"rows_last":500,"rows_between":2000,"halvings":0,"cell_chars":16384,"cell_head_chars":4096},"cells_cut":0,"cells_raw":0,"read":"whole","date_system":"1900"}

{"sheet":"Pasiūlymas","index":0,"n_rows":61,"n_cols":7,"rows_kept":61,"cut":false,"hidden":false,"merged":[[25,0,25,5],[26,0,26,5],[27,0,27,5],[28,0,28,5],[29,0,29,2],[29,3,29,5],[20,0,20,1],[20,2,20,5],[22,0,22,5],[23,0,23,5],[24,0,24,5],[17,0,17,1],[17,2,17,5],[18,0,18,1],[18,2,18,5],[19,0,19,1],[19,2,19,5],[14,0,14,1],[14,2,14,5],[15,0,15,1],[15,2,15,5],[16,0,16,1],[16,2,16,5],[11,0,11,1],[11,2,11,5],[12,0,12,1],[12,2,12,5],[13,0,13,1],[13,2,13,5]]}
[]
["PIRKIMO SĄLYGŲ PRIEDAS \"PASIŪLYMŲ FORMA\""]
[]
["LAUKINIŲ GYVŪNŲ GLOBOS PRIEMONIŲ ĮGYVENDINIMAS LIETUVOS RESPUBLIKOS TERITORIJOJE"]
[]
["Kam:","Viešoji įstaiga CPO LT"]
[]
["Data:","2022 m. birželio 17 d."]
["Nr.:","22/06-2"]
["Vieta:","Kaunas"]
[]
["Tiekėjo pavadinimas / Ūkio subjektų grupės nariai:",null,"GYVŪNŲ GLOBĖJŲ ASOCIACIJA"]
["Tiekėjo kodas (-ai):",null,135468522]
["Tiekėjo adresas (-ai):",null,"K. JAUNIAUS G.58"]
["Tiekėjo PVM mokėtojo kodas(-ai):",null,"LT-100010499315"]
["Tiekėjo / Ūkio subjektų grupės atsakingo partnerio sąskaitos numeris, banko pavadinimas ir banko kodas (-ai):",null,"AB SWEDBANK, BANKO KODAS 73000, A.S. LT957300010134432392"]
["Asmens atsakingo už pasiūlymą vardas, pavardė:",null,"PREZIDENTAS VYTAUTAS GUSTAITIS"]
["Asmens atsakingo už pasiūlymą telefono numeris, el. pašto adresas:",null,"TEL.868644828, EL PAŠTAS: info@gga.lt"]
["Tiekėjo / Ūkio subjektų grupės, laimėjimo atveju, pasirašančio sutartį asmens vardas, pavardė, pareigos:",null,"PREZIDENTAS VYTAUTAS GUSTAITIS"]
["Tiekėjo / Ūkio subjektų grupės, laimėjimo atveju, už sutarties vykdymą atsakingo asmens vardas, pavardė, telefono numeris, elektroninio pašto adresas:",null,"PREZIDENTAS VYTAUTAS GUSTAITIS, tel. 868644828, el. paštas: info@gga.lt"]
["(1) Tiekėjo / Ūkio subjektų grupės narių, (2) ūkio subjektų, kurių pajėgumais remiamasi, ir (3) jei pašalinimo pagrindai taikomi visiems subtiekėjams - subtiekėjų, kolegialaus priežiūros organo (Stebėtojų tarybos) ir (ar) kolegialaus valdymo organo (Valdybos) narių sąrašas (jei sudaryta) ir (ar) asmuo, kuriam suteikti VPĮ 46 str. 2 d. 2 p. numatyti įgaliojimai",null,null,null,null,null,{"$f":"IF((SUMPRODUCT(--(C21=\"\"))>0),\"Privaloma užpildyti, kai taikomi pašalinimo pagrindai\",\"\")","v":"Privaloma užpildyti, kai taikomi pašalinimo pagrindai"}]
[]
["Tiekėjo patvirtinimai:"]
["1. Šiuo pasiūlymu pažymime, kad sutinkame su visomi pirkimo sąlygomis, nustatytomis:"]
["1.1. viešojo pirkimo dokumentuose"]
["1.2. kituose pirkimo dokumentuose (jų paaiškinimuose, papildymuose)."]
["2. Patvirtiname, kad informacija ir duomenys, pateikti pasiūlyme, yra teisingi ir apima viską, ko reikia tinkamam sutarties įvykdymui"]
["3. Patvirtiname, kad jei pasiūlyme nenurodyti kolegialaus priežiūros/valdymo organų nariai, šie organai juridiniuose asmenyse nėra sudaryti (taikoma, kai pirkimo dokumentuose nustatyti pašalinimo pagrindai)."]
["4. Pasiūlymas galioja iki termino, nustatyto pirkimo dokumentuose."]
["5. Tais atvejais, kai pagal galiojančius teisės aktus tiekėjui nereikia mokėti PVM, jis nurodo priežastis, dėl kurių PVM nemoka:"]
["6. Tiekėjas kainas pateikia, nurodydamas ne daugiau skaičių po kablelio, nei leidžiama pirkimo dokumentuose."]
["Tiekėjo pasiūlymas:"]
["Nr.","Pavadinimas","Preliminarus lyginamasis kiekis (12 mėn.)","Mato vienetas","Įkainis be PVM, Eur","Suma be PVM, Eur"]
["1.1.","Nuvykimas į laukinio paukščio ir (ar) smulkaus laukinio gyvūno, kuriam reikalinga pagalba ir (ar) globa, radimo vieną ir šio gyvūno transportavimas į gydymo ir (ar) globos įstaigą (darbo dienomis)",5000,"km",1.65,{"$f":"IF(ISBLANK(E34),\"\",PRODUCT(C34,E34))","v":8250}]
["1.2.","Nuvykimas į laukinio paukščio ir (ar) smulkaus laukinio gyvūno, kuriam reikalinga pagalba ir (ar) globa, radimo vieną ir šio gyvūno transportavimas į gydymo ir (ar) globos įstaigą (ne darbo dienomis)",1000,"km",2,2000]
["1.3.","Nuvykimas į stambaus laukinio gyvūno, kuriam reikalinga pagalba ar globa, radimo vieną ir šio laukinio gyvūno transportavimas į gydymo ir (ar) globos įstaigą (darbo dienomis)",3000,"km",1.65,4950]
["1.4.","Nuvykimas į stambaus laukinio gyvūno, kuriam reikalinga pagalba ar globa, radimo vieną ir šio laukinio gyvūno transportavimas į gydymo ir (ar) globos Įstaigą (ne darbo dienomis)",500,"km",2,1000]
["1.5.","Laukinio paukščio ir (ar) smulkaus laukinio gyvūno paėmimas (darbo dienomis)",1000,"vnt.",7.5,7500]
["1.6.","Laukinio paukščio ir (ar) smulkaus laukinio gyvūno paėmimas (ne darbo dienomis)",100,"vnt.",20,2000]
["1.7.","Stambaus laukinio gyvūno sugavimas, paėmimas (darbo dienomis)",300,"vnt.",15,4500]
["1.8.","Stambaus laukinio gyvūno sugavimas, paėmimas (ne darbo dienomis)",50,"vnt.",50,2500]
["1.9.","Stambaus laukinio gyvūno sugavimas, naudojant pneumatinį šautuvą ir medicinos preparatą užmigdymui",350,"vnt.",25,8750]
["1.10.","Laukinio paukščio/smulkaus laukinio gyvūno būklės tyrimas apžiūros būdu, diagnozės nustatymas",1100,"vnt.",10,11000]
["1.11.","Stambaus laukinio gyvūno būklės tyrimas apžiūros būdu, diagnozės nustatymas",350,"vnt.",10,3500]
["1.12.","Laukinio paukščio/ smulkaus ar stambaus laukinio gyvūno tyrimas rentgenu (1 nuotrauka)",200,"vnt.",20,4000]
["1.13.","Laukinio paukščio/smulkaus laukinio gyvūno prieš parazitinis gydymas (prieš parazitinis preparatas - injekcija)",550,"vnt.",3,1650]
["1.14.","Stambaus laukinio gyvūno priešparazitinis gydymas (priešparazitinis preparatas - injekcija)",160,"vnt.",7,1120]
["1.15.","Laukinio paukščio žiedavimas",300,"vnt.",1,300]
["1.16.","Laukinio paukščio/smulkaus laukinio gyvūno sulaužytos galūnės sutvarkymas – nuskausminimas, gipsavimas",200,"vnt.",23,4600]
["1.17.","Stambaus laukinio gyvūno sulaužytos galūnės sutvarkymas – nuskausminimas, gipsavimas",50,"vnt.",23,1150]
["1.18.","Laukinio paukščio/smulkaus laukinio gyvūno atviros žaizdos sutvarkymas - nuskausminimas, antibakteriniai preparatai, sutvarstymas",550,"vnt.",5,2750]
["1.19.","Stambaus laukinio gyvūno atviros žaizdos sutvarkymas nuskausminimas, antibakteriniai preparatai, sutvarstymas",160,"vnt.",13,2080]
["1.20.","Laukinio paukščio/smulkaus laukinio gyvūno nugaišinimas",50,"vnt.",7,350]
["1.21.","Stambaus laukinio gyvūno nugaišinimas",20,"vnt.",32,640]
["1.22.","Laukinio paukščio/smulkaus laukinio gyvūno ar jauniklių paimtų globoti laikymas iki išleidimo į laisvę, perdavimo ar nugaišimo",800,"para",4,3200]
["1.23.","Stambaus laukinio gyvūno ar jauniklio laikymas iki išleidimo į laisvę, perdavimo ar nugaišimo",200,"para",8,1600]
["1.24.","Laukinio paukščio/smulkaus laukinio gyvūno, ar konfiskuoto gyvūno gaišenų tvarkymo veterinarijos reikalavimų įgyvendinimas",50,"vnt.",33,1650]
["1.25.","Stambaus laukinio gyvūno, ar konfiskuoto gyvūno gaišenų tvarkymo veterinarijos reikalavimų įgyvendinimas",20,"vnt.",80,1600]
[null,null,null,null,"Suma be PVM",{"$f":"IF((SUMPRODUCT(--(F34:F58=\"\"))>0),\"\",SUM(F34:F58))","v":82640},{"$f":"IF((SUMPRODUCT(--(F34:F58=\"\"))>0),\"Neužpildytos visų objektų kainos\",\"\")","v":""}]
[null,null,null,null,"PVM suma",17354.400000000001]
[null,null,null,null,"Suma su PVM",{"$f":"IF(ISBLANK(F60),\"\",SUM(F59:F60))","v":99994.4},"Maksimalus biudžetas be PVM 82644.63 (12 mėn) "]

{"sheet":"Subtiekėjai ir priedai","index":1,"n_rows":100,"n_cols":11,"rows_kept":100,"cut":false,"hidden":false,"merged":[[52,0,52,3],[52,4,52,9],[1,0,2,10],[43,1,43,6],[43,7,43,9],[44,1,44,6],[44,7,44,9],[45,1,45,6],[45,7,45,9],[47,0,47,9],[50,0,50,3],[50,4,50,9],[38,1,38,6],[38,7,38,9],[39,1,39,6],[39,7,39,9],[40,1,40,6],[40,7,40,9],[41,1,41,6],[41,7,41,9],[42,1,42,6],[42,7,42,9],[32,0,32,9],[34,1,34,6],[34,7,34,9],[35,1,35,6],[35,7,35,9],[36,1,36,6],[36,7,36,9],[37,1,37,6],[37,7,37,9],[27,0,27,1],[27,2,27,4],[27,5,27,7],[27,8,27,9],[28,0,28,1],[28,2,28,4],[28,5,28,7],[28,8,28,9],[30,0,30,9],[24,0,24,1],[24,2,24,4],[24,5,24,7],[24,8,24,9],[25,0,25,1],[25,2,25,4],[25,5,25,7],[25,8,25,9],[26,0,26,1],[26,2,26,4],[26,5,26,7],[26,8,26,9],[21,0,21,1],[21,2,21,4],[21,5,21,7],[21,8,21,9],[22,0,22,1],[22,2,22,4],[22,5,22,7],[22,8,22,9],[23,0,23,1],[23,2,23,4],[23,5,23,7],[23,8,23,9],[18,0,18,1],[18,2,18,4],[18,5,18,7],[18,8,18,9],[19,0,19,1],[19,2,19,4],[19,5,19,7],[19,8,19,9],[20,0,20,1],[20,2,20,4],[20,5,20,7],[20,8,20,9],[13,0,13,1],[13,2,13,4],[13,5,13,7],[13,8,13,9],[14,0,14,1],[14,2,14,4],[14,5,14,7],[14,8,14,9],[16,0,16,10],[10,0,10,1],[10,2,10,4],[10,5,10,7],[10,8,10,9],[11,0,11,1],[11,2,11,4],[11,5,11,7],[11,8,11,9],[12,0,12,1],[12,2,12,4],[12,5,12,7],[12,8,12,9],[7,0,7,1],[7,2,7,4],[7,5,7,7],[7,8,7,9],[8,0,8,1],[8,2,8,4],[8,5,8,7],[8,8,8,9],[9,0,9,1],[9,2,9,4],[9,5,9,7],[9,8,9,9],[4,0,4,1],[4,2,4,4],[4,5,4,7],[4,8,4,9],[5,0,5,1],[5,2,5,4],[5,5,5,7],[5,8,5,9],[6,0,6,1],[6,2,6,4],[6,5,6,7],[6,8,6,9]]}
[]
["Ūkio subjektai (įskaitant kvazisubtiekėjus - fiziniai asmenys, kuriuos ketinama įdarbinti pirkimo laimėjimo atveju), kurių pajėgumais tiekėjas remiasi, kad atitiktų keliamus kvalifikacijos reikalavimus:"]
[]
[]
["Pavadinimas*",null,"Kodas, adresas",null,null,"Perduodami įsipareigojimai",null,null,"Perduodamų įsipareigojimų dalis nuo visos pirkimo sutarties (Eur arba %)",null,"Kval. Reikalavimo Nr."]
["UAB Nuaras",null,"134051084, Šv.Gertrūdos g.46 Kaunas",null,null,"Suteikti laikiną prieglobstį laukiniams gyvūnams ir paukščiams, užtikrinti jų mitybą, suteikti neatidėliotiną veterinarinę pagalbą, gyvūnų gydymą, gyvūnų slauga ir globa, pasveikusių gyvūnų reabilitacija, priežiūra ir parengimas grįžimui į laisvę. Priimti sužeistus, ligotus, pasimetusius laukinius gyvūnus bei jų jauniklius iš gyventojų ar kitų juridinių asmenų. ",null,null,0.4,null,"1,2,3,5,6"]
["VšĮ \"Buivydiškių veterinarinė klinika\"",null,"Justiniškių g.64 Vilnius",null,null,"Suteikti laikiną prieglobstį laukiniams gyvūnams ir paukščiams, užtikrinti jų mitybą, suteikti neatidėliotiną veterinarinę pagalbą, laukiniams gyvūnams pagal esamas aplinkybes. Priimti sužeistus, ligotus, pasimetusius laukinius gyvūnus bei jų jauniklius iš gyventojų ar kitų juridinių asmenų. ",null,null,0.1,null,2.6]
[]
[]
[]
[]
[]
[]
[]
[]
[]
["Subtiekėjams / subteikėjams / subrangovams numatomos perduoti veiklos (privaloma nurodyti) ir šių ūkio subjektų pavadinimai (jei žinomi):"]
[]
["Pavadinimas",null,"Kodas, adresas",null,null,"Perduodama veikla*",null,null,"Perduodamos veiklos dalis nuo visos pirkimo sutarties (Eur arba %)"]
[]
[]
[]
[]
[]
[]
[]
[]
[]
[]
[]
[]
[]
["Kartu su pasiūlymu pateikiami šie dokumentai:"]
[]
["Nr.","Dokumento  pavadinimas",null,null,null,null,null,"Dokumentas yra konfidencialus? Taip/Ne"]
[1,"Jungtinės veiklos kopija (jei taikoma)",null,null,null,null,null,"Ne"]
[2,"Europos bendrasis viešųjų pirkimų dokumentas",null,null,null,null,null,"Ne"]
[3,"Subtiekimo sutartis, ketinimų protokolas, preliminarios sutartys ar kiti dokumentai, patvirtinantys, kad laimėjus pirkimą tiekėjui bus prieinami kitų ūkio subjektų ištekliai (jei pasitelkiami kvalifikacijos atitikimui)",null,null,null,null,null,"Taip"]
[4,"Kvalifikacijos dokumentai, licencijos",null,null,null,null,null,"Taip"]
[5,"Pažymos iš informatikos ir ryšių departamento, Valstybinės mokesčių inspekcijos, VĮ Registrų centro",null,null,null,null,null,"Ne"]
[6,"gyvūnų globos namų veterinariniai patvirtinimai",null,null,null,null,null,"Ne"]
[7,"Įgaliojimas",null,null,null,null,null,"Taip"]
[8,"Transporto priemonių registravimo liudijimai ir VMVT išduotos pažymos trumpos gyvūnų kelionėms",null,null,null,null,null,"Ne"]
[9,"Pažymos apie gyvūnų globos vietas",null,null,null,null,null,"Taip"]
[]
[]
[]
["Pasiūlyme nurodyta Prekės kaina, išskyrus jos sudedamąsias dalis, subtiekėjai, taip pat kita informacija, kuri teisės aktų nustatyta tvarka turi būti skelbiama arba kitokiu būdu viešai prieinama visuomenei, nėra laikoma konfidencialia informacija. Konfidencialią informaciją sudaro, visų pirma, komercinė (gamybinė) paslaptis ir konfidencialieji pasiūlymų aspektai. Informacija, kurią viešai skelbti įpareigoja Lietuvos Respublikos įstatymai, negali būti tiekėjo nurodoma kaip konfidenciali, todėl, tiekėjui nurodžius tokią informaciją kaip konfidencialią, perkančioji organizacija turi teisę ją skelbti. Jei tiekėjas nenurodo konfidencialios informacijos, laikoma, kad konfidencialios informacijos tiekėjo pasiūlyme nėra. Vadovaujantis Informacijos viešinimo Centrinėje viešųjų pirkimų informacinėje sistemoje tvarkos aprašu, patvirtintu Viešųjų pirkimų tarnybos direktoriaus 2017 m. birželio 19 d. įsakymu Nr. 1S-91 „Dėl Informacijos viešinimo Centrinėje viešųjų pirkimų informacinėje sistemoje tvarkos aprašo patvirtinimo“, perkančioji organizacija laimėjusio dalyvio pasiūlymą, išskyrus informaciją, kurią tiekėjas nurodė kaip konfidencialią, paskelbs CVP IS."]
[]
[]
["Tiekėjo arba jo įgalioto asmens pareigų pavadinimas:",null,null,null,"Gyvūnų globėjų asociacijos narė "]
[]
["Pasirašančio asmens vardas ir pavardė:",null,null,null,"Jurgita Miliauskienė"]
[]
[]
[]
[]
[]
[]
[]
[]
[]
[]
[]
[]
[]
[]
[]
[]
[]
[]
[]
[]
[]
[]
[]
[]
[]
[]
[]
[]
[]
[]
[]
[]
[]
[]
[]
[]
[]
[]
[]
[]
[]
[]
[]
[]
[]
[]
["5503-1 2022-04-25 14:03:23"]